bitfinex/quotes_ETHUSD_20240729
["timestamp","ask_amount","ask_price","bid_price","bid_amount"]
[1722260448983,2.9732,3363.4,3362.5,0.05947046]
[1722260449337,2.97288,3363.8,3362.5,0.05947046]
[1722260449543,2.97278,3363.9,3362.5,0.05947046]
[1722260449544,1.02979854,3363.7,3362.6,0.55]
[1722260449683,1.02979854,3363.6,3362.7,0.05946623]
[1722260449881,2.97294,3363.7,3362.7,0.05946623]
[1722260450076,1.0297771,3363.6,3362.7,0.05946623]
[1722260450316,2.97301,3363.6,3362.7,0.05946623]
[1722260450522,2.97294,3363.7,3362.7,0.05946623]
[1722260450523,1.02977392,3363.5,3362.7,0.05946623]
[1722260450724,2.97294,3363.7,3362.7,0.05946623]
[1722260451044,0.29726,3364.0,3362.3,0.005]
[1722260451045,2.97318,3363.4,3362.3,0.005]
[1722260451386,4.00310925,3363.3,3362.3,0.555]
[1722260451503,6.97644925,3363.3,3362.3,0.555]
[1722260451708,1.02983047,3363.2,3362.3,0.005]
[1722260451949,3.0,3363.4,3362.4,0.28749]
[1722260452151,4.0031282,3363.3,3362.4,0.28749]
[1722260452297,1.0298482,3363.2,3362.3,0.005]
[1722260452494,1.0298482,3363.1,3362.3,0.005]
[1722260452725,1.0298482,3363.2,3362.3,0.005]
[1722260452943,1.02987037,3363.1,3362.3,0.29696726]
[1722260453234,5.97318,3363.4,3362.3,0.29696726]
[1722260453450,1.02986093,3363.3,3362.3,0.23749]
[1722260453752,1.02986093,3363.2,3362.3,0.23749]
[1722260454324,0.05834706,3363.1,3362.3,0.23749]
[1722260454531,1.02986093,3363.0,3362.4,0.255739]
[1722260454740,0.05829516,3363.0,3362.4,0.255739]
[1722260454959,1.02990949,3362.9,3362.4,0.255739]
[1722260455184,2.97332,3363.3,3362.4,0.255739]
[1722260455464,1.02993299,3363.2,3362.4,0.255739]
[1722260455777,1.02993299,3363.1,3362.4,0.255739]
[1722260456066,1.08828825,3363.0,3362.4,0.241139]
[1722260456267,1.02987032,3362.9,3362.4,0.241139]
[1722260456477,0.05829652,3362.9,3362.4,0.241139]
[1722260456674,9.60841,3363.4,3362.4,0.241139]
[1722260456839,0.05823778,3362.8,3362.3,0.005]
[1722260457376,1.025501,3363.3,3362.3,0.005]
[1722260457377,0.05817903,3362.7,3362.3,0.005]
[1722260457725,3.998831,3363.3,3362.3,0.005]
[1722260458076,1.02988337,3363.2,3362.3,0.005]
[1722260458243,1.82981411,3363.1,3362.4,2.3135]
[1722260458595,0.05630363,3363.0,3362.5,3.81523624]
[1722260458728,0.05630363,3363.0,3362.5,3.75576]
[1722260458928,2.97248,3364.2,3362.5,3.75576]
[1722260459131,1.82960105,3364.1,3362.5,3.75581]
[1722260459381,1.82960105,3364.0,3362.7,2.3135]
[1722260459583,1.82960105,3363.9,3362.8,0.55]
[1722260459884,1.82960105,3363.8,3362.9,0.05945992]
[1722260460090,0.79994137,3363.7,3363.0,2.436]
[1722260460373,2.97222,3364.5,3363.1,0.30454599]
[1722260460578,4.80268725,3364.4,3363.2,0.55]
[1722260460725,0.80082338,3364.3,3363.3,0.3840546]
[1722260461024,1.02954258,3364.2,3363.4,0.60945286]
[1722260461226,1.83036596,3364.1,3363.6,2.4808]
[1722260461426,2.97151,3365.3,3363.7,0.60944614]
[1722260461734,5.21540272,3365.2,3363.8,0.68119839]
[1722260462097,1.83062921,3365.1,3363.9,0.55]
[1722260462376,1.83062921,3365.1,3364.0,5.44205]
[1722260462377,1.83062921,3365.0,3364.0,5.44205]
[1722260462582,0.05351243,3365.1,3364.1,0.05943872]
[1722260462583,1.83064685,3364.9,3364.1,0.05943872]
[1722260462730,0.80131044,3364.8,3364.1,1.15364372]
[1722260463050,0.80131044,3364.7,3364.1,1.094205]
[1722260463237,0.05060543,3364.6,3364.1,0.55]
[1722260463443,0.05060543,3364.6,3364.0,2.4694]
[1722260463444,0.80131044,3364.5,3364.0,2.4694]
[1722260464001,0.05054483,3364.4,3364.1,0.05944256]
[1722260464140,2.97111,3365.8,3364.1,0.80288426]
[1722260464472,6.43691,3366.0,3364.2,0.05943309]
[1722260464473,3.22006998,3365.7,3364.2,0.05943309]
[1722260464783,1.83133667,3365.6,3364.3,0.55]
[1722260464935,6.19186747,3365.5,3364.1,0.80288426]
[1722260465131,1.83133667,3365.4,3364.2,0.32722843]
[1722260465463,0.30192565,3365.6,3364.3,0.55]
[1722260465464,0.84957032,3365.3,3364.3,0.55]
[1722260465651,0.84957032,3365.3,3364.0,2.4694]
[1722260465652,0.80211677,3365.2,3364.0,2.4694]
[1722260465838,2.972,3364.8,3364.0,2.4694]
[1722260466037,2.56653147,3365.1,3364.0,2.4694]
[1722260466038,2.97226,3364.5,3364.0,2.4694]
[1722260466238,0.80211677,3364.4,3364.0,2.4694]
[1722260466440,0.84857538,3364.3,3364.0,2.4694]
[1722260466740,0.80211677,3364.2,3363.4,2.4024]
[1722260467153,0.04637964,3364.1,3363.4,2.4024]
[1722260467334,5.97213,3364.6,3363.5,0.05945049]
[1722260467559,2.9723,3364.4,3363.4,2.4024]
[1722260467753,3.80147672,3364.3,3363.4,2.4024]
[1722260467940,0.80147672,3364.2,3363.4,2.4024]
[1722260468256,0.04630149,3364.1,3363.4,2.4024]
[1722260468456,1.48349354,3364.0,3363.4,2.4024]
[1722260468655,0.84766082,3363.9,3363.4,2.4024]
[1722260468853,0.0461841,3363.9,3363.5,0.0594565]
[1722260469193,3.6794377,3364.9,3363.5,0.0594565]
[1722260469337,1.83071964,3364.8,3363.8,2.36]
[1722260469541,0.04438097,3364.8,3363.9,0.60943476]
[1722260469740,0.04438097,3364.8,3363.9,0.55]
[1722260469993,2.97142,3365.4,3363.9,0.55]
[1722260470141,2.97174,3365.1,3363.9,0.55]
[1722260470347,3.77271382,3365.0,3363.9,0.55]
[1722260470564,3.77271382,3365.0,3363.8,2.36]
[1722260470565,1.83039858,3364.9,3363.8,2.36]
[1722260470747,1.58276853,3364.8,3363.8,2.36]
[1722260470960,0.80093382,3364.7,3363.8,2.36]
[1722260471361,0.04295297,3364.6,3363.8,2.36]
[1722260471883,3.0,3364.9,3363.8,2.36]
[1722260472049,0.04295116,3364.5,3363.8,2.36]
[1722260472250,2.97195,3364.8,3363.8,2.36]
[1722260472545,0.84497547,3364.7,3363.8,2.36]
[1722260472746,0.80185009,3364.6,3363.8,2.36]
[1722260472986,0.04312538,3364.7,3363.8,2.36]
[1722260473185,0.04413983,3364.5,3363.9,0.60944772]
[1722260473380,0.04453939,3364.6,3364.0,0.59422177]
[1722260473585,3.0,3365.4,3364.1,0.60943733]
[1722260473904,0.84626171,3365.3,3364.1,0.60943733]
[1722260474090,0.04494974,3365.3,3364.2,2.2802]
[1722260474291,0.04494974,3365.3,3364.3,1.25508403]
[1722260474489,2.97116,3365.7,3364.3,1.25508403]
[1722260474698,0.04475171,3365.2,3364.2,2.2802]
[1722260474999,2.97162,3365.2,3364.2,2.2802]
[1722260475201,0.04434516,3365.1,3364.3,0.05944088]
[1722260475493,3.0,3365.3,3364.2,2.2802]
[1722260475697,0.04392281,3365.0,3364.3,0.55]
[1722260475997,2.97191,3364.9,3364.2,2.2802]
[1722260476161,3.01577416,3364.9,3364.2,2.2802]
[1722260476364,3.01577416,3364.9,3363.7,7.24]
[1722260476365,2.97211,3364.7,3363.7,9.5514]
[1722260476583,3.01575416,3364.9,3363.7,9.5514]
[1722260476812,0.04392972,3364.6,3363.7,9.5514]
[1722260477136,3.0,3364.8,3363.7,2.3114]
[1722260477137,0.04387106,3364.5,3363.7,2.3114]
[1722260477312,0.04387106,3364.5,3363.8,0.23114]
[1722260477522,2.97197,3364.8,3363.8,0.23114]
[1722260477746,0.04289674,3364.4,3363.7,2.3114]
[1722260478011,3.0,3364.7,3363.7,2.3114]
[1722260478216,0.04283805,3364.3,3363.7,2.3114]
[1722260478401,3.0,3364.7,3363.7,2.3114]
[1722260478597,0.04275799,3364.2,3363.7,2.3114]
[1722260478801,5.97165,3365.2,3363.3,7.24]
[1722260478802,2.97234,3364.4,3363.3,7.24]
[1722260479210,0.84469531,3364.3,3363.3,7.24]
[1722260479415,4.1552632,3364.2,3363.3,7.24]
[1722260479641,3.0,3364.1,3363.3,7.24]
[1722260479795,0.04265663,3364.1,3363.4,0.05945155]
[1722260479998,0.04265663,3364.1,3363.3,7.24]
[1722260480207,2.97244,3364.3,3363.3,7.24]
[1722260480445,0.04282486,3364.0,3363.3,7.24]
[1722260480628,0.04241116,3363.9,3363.3,7.24]
[1722260480953,3.597244,3364.2,3363.2,2.4908]
[1722260481154,0.04231601,3363.8,3363.2,2.4908]
[1722260481317,3.0,3364.3,3363.2,2.4908]
[1722260481318,3.0,3364.3,3363.3,0.05945981]
[1722260481530,10.776,3365.2,3363.4,0.25502598]
[1722260481531,0.04280368,3363.7,3363.4,0.25502598]
[1722260481733,2.97182,3365.0,3363.5,2.52874813]
[1722260481958,1.02935563,3364.9,3363.6,2.347]
[1722260482160,0.04139311,3364.9,3364.0,2.347]
[1722260482316,2.97143,3365.4,3364.1,0.60943724]
[1722260482522,0.04141459,3364.8,3364.2,0.05943722]
[1722260482769,5.31497,3365.8,3364.3,0.84564372]
[1722260482953,4.80150205,3365.7,3364.3,0.35507799]
[1722260483135,1.83035205,3365.6,3364.4,0.55]
[1722260483331,1.83035205,3365.5,3364.5,0.0594342]
[1722260483532,2.31481641,3365.4,3364.5,0.0594342]
[1722260483749,0.04228741,3365.5,3364.6,2.2985]
[1722260484076,1.0292183,3365.4,3364.7,0.05943243]
[1722260484269,2.97107,3365.8,3364.7,0.05943243]
[1722260484568,0.04322825,3365.3,3364.7,0.05943243]
[1722260484771,1.02913675,3365.7,3364.7,0.05943243]
[1722260484921,0.04332357,3365.2,3364.7,0.05943243]
[1722260485126,2.97058,3366.4,3364.8,3.58136071]
[1722260485375,0.04323329,3365.1,3364.9,2.97179]
[1722260485548,0.04323329,3365.1,3364.8,0.60943071]
[1722260485549,2.97042,3366.6,3365.0,6.64130501]
[1722260485758,1.83182597,3366.5,3365.1,2.97161]
[1722260486070,0.04175092,3366.5,3365.2,0.55]
[1722260486377,1.83184756,3366.4,3365.1,0.55]
[1722260486596,3.01220092,3366.5,3365.1,0.55]
[1722260486758,0.04184651,3366.3,3365.1,0.55]
[1722260487093,0.04181625,3366.2,3365.1,0.55]
[1722260487272,0.594072,3366.4,3365.2,0.29548]
[1722260487591,0.04178599,3366.1,3365.3,0.60941445]
[1722260487809,0.04190318,3366.3,3365.3,0.55]
[1722260487959,0.04169905,3366.0,3365.3,0.55]
[1722260488302,0.04166018,3365.9,3365.3,0.875028]
[1722260488588,0.04166018,3365.9,3365.3,0.55]
[1722260488800,5.97061,3366.4,3365.1,0.55]
[1722260488965,0.04164964,3365.8,3365.1,0.55]
[1722260489149,1.028995,3366.3,3365.0,2.4048]
[1722260489150,2.97089,3366.0,3365.0,2.4048]
[1722260489498,4.36806971,3365.9,3365.0,2.4048]
[1722260489693,0.0419066,3365.9,3365.1,0.05942068]
[1722260489841,3.0,3366.5,3365.0,2.4048]
[1722260490047,2.97076,3366.2,3365.0,2.4048]
[1722260490354,4.55548971,3366.1,3365.0,2.4048]
[1722260490553,1.02905717,3366.0,3365.0,2.4048]
[1722260490872,0.04205955,3365.9,3365.0,2.4048]
[1722260491074,0.04219647,3366.1,3365.0,2.4048]
[1722260491390,0.04206874,3365.8,3365.0,2.4048]
[1722260491583,0.04223399,3366.0,3365.0,2.4048]
[1722260491785,0.04198411,3365.7,3365.0,2.4048]
[1722260492102,0.04204458,3365.6,3365.1,0.60942195]
[1722260492390,0.04204458,3365.6,3365.2,0.30142219]
[1722260492591,3.0,3366.4,3365.3,0.55]
[1722260492795,3.0,3366.4,3365.4,0.05941806]
[1722260493010,0.04233399,3366.3,3365.4,0.05941806]
[1722260493157,0.04233399,3366.3,3365.5,0.55]
[1722260493351,0.04233399,3366.3,3365.6,0.05941643]
[1722260493684,0.04253922,3366.2,3365.6,0.05941643]
[1722260494053,3.0,3366.6,3365.6,0.05941643]
[1722260494254,0.63974296,3366.5,3365.7,2.4731]
[1722260494578,0.04271496,3366.5,3365.8,0.05941394]
[1722260494949,2.97038,3366.6,3365.7,2.4731]
[1722260495150,0.04242913,3366.4,3365.7,2.4731]
[1722260495404,3.04249047,3366.5,3365.7,2.4731]
[1722260495556,0.04240025,3366.3,3365.7,2.4731]
[1722260495749,0.60128705,3366.4,3365.7,2.4731]
[1722260495750,0.04243051,3366.4,3365.7,2.4731]
[1722260496054,0.04242433,3366.3,3365.7,2.4731]
[1722260496261,0.04242433,3366.3,3365.8,0.05941417]
[1722260496549,3.0,3366.7,3365.8,0.05941417]
[1722260496777,0.04236574,3366.2,3365.8,0.05941417]
[1722260496979,3.894032,3366.7,3365.8,0.05941417]
[1722260497296,3.894032,3366.7,3365.8,0.05941414]
[1722260497588,0.04108426,3366.6,3365.8,0.05941414]
[1722260497757,3.04108426,3366.6,3365.8,0.36766555]
[1722260498092,0.04108426,3366.6,3365.8,0.30825141]
[1722260498255,3.0,3366.7,3365.7,2.4731]
[1722260498453,0.04143995,3366.6,3365.8,0.55]
[1722260498774,3.0,3366.8,3365.8,0.55]
[1722260498978,0.0414011,3366.5,3365.8,0.85231]
[1722260499179,0.04151823,3366.7,3365.8,0.55]
[1722260499493,3.0,3366.8,3365.9,0.05941086]
[1722260499651,0.04169449,3366.6,3365.9,0.05941086]
[1722260499858,3.0,3366.8,3365.9,0.05941086]
[1722260500069,0.04172473,3366.7,3365.9,0.05941086]
[1722260500982,8.38964,3367.2,3366.0,0.55]
[1722260501166,0.04068617,3366.6,3366.1,0.0594062]
[1722260501367,8.38964,3367.2,3366.1,0.0594062]
[1722260501618,0.04084574,3366.5,3366.1,0.0594062]
[1722260501777,2.96959,3367.5,3366.1,0.0594062]
[1722260501976,0.04072661,3366.4,3366.2,2.8714]
[1722260502193,3.52633,3367.5,3366.3,0.0594025]
[1722260502487,2.96974,3367.3,3366.3,0.0594025]
[1722260502694,0.65352745,3367.2,3366.3,0.0594025]
[1722260502995,0.69292713,3367.2,3366.3,0.0594025]
[1722260503198,3.69292713,3367.2,3366.3,0.0594025]
[1722260503367,0.69292713,3367.2,3366.3,0.0594025]
[1722260503692,0.03939968,3367.2,3366.3,0.0594025]
[1722260503895,3.03939968,3367.2,3366.3,0.0594025]
[1722260505481,0.03939968,3367.2,3366.3,0.0594025]
[1722260505687,3.0,3367.3,3366.2,2.8714]
[1722260505995,0.0392508,3367.1,3366.2,3.15854]
[1722260506159,0.03930935,3367.2,3366.3,0.05940207]
[1722260506363,0.03916909,3367.0,3366.3,0.05940207]
[1722260506563,0.0392508,3367.1,3366.4,0.32179421]
[1722260506789,0.03913368,3366.9,3366.5,0.05940201]
[1722260507092,0.03907512,3366.8,3366.5,0.05940201]
[1722260507456,0.596967,3367.3,3366.5,0.05940201]
[1722260507696,0.03931455,3367.2,3366.3,0.05940026]
[1722260507917,0.03931455,3367.2,3366.4,0.55]
[1722260508118,0.03931455,3367.2,3366.5,0.0594003]
[1722260508297,5.96956,3367.5,3366.6,0.55]
[1722260508298,3.0,3367.5,3366.6,0.55]
[1722260508497,0.03905267,3367.1,3366.7,0.05939501]
[1722260508692,2.96937,3367.8,3366.6,0.55]
[1722260508693,2.96937,3367.8,3366.8,0.05939505]
[1722260509020,4.153664,3367.7,3366.9,2.4368]
[1722260509218,1.19303961,3367.7,3367.0,0.05939269]
[1722260509423,1.19303961,3367.7,3366.9,2.4368]
[1722260509424,2.96947,3367.6,3366.9,2.4368]
[1722260509724,2.96947,3367.6,3366.4,0.55]
[1722260509725,6.0089504,3367.5,3366.4,2.9868]
[1722260509906,2.96979,3367.3,3366.4,2.9868]
[1722260510085,3.0089204,3367.5,3366.4,2.9868]
[1722260510399,0.59783304,3367.4,3366.4,2.9868]
[1722260510783,0.03946671,3367.3,3366.4,2.9868]
[1722260511114,0.03946671,3367.3,3366.5,0.05939822]
[1722260511295,0.03946671,3367.3,3366.6,0.55]
[1722260511490,3.0,3367.6,3366.7,0.05939576]
[1722260511699,0.03940816,3367.2,3366.6,0.55]
[1722260511892,0.596941,3367.5,3366.5,0.55]
[1722260512093,0.03934961,3367.1,3366.5,0.55]
[1722260512292,0.596941,3367.5,3366.5,1.57268]
[1722260512493,0.03929105,3367.0,3366.5,1.57268]
[1722260512693,0.596941,3367.5,3366.5,1.57268]
[1722260512925,0.03923249,3366.9,3366.5,1.57268]
[1722260513098,0.596941,3367.5,3366.5,1.57268]
[1722260513287,0.03929983,3366.8,3366.6,0.400948]
[1722260513619,3.0,3367.7,3366.7,0.55]
[1722260513837,1.02859866,3367.6,3366.7,0.55]
[1722260514016,1.02859866,3367.5,3366.6,0.55]
[1722260514229,2.63776823,3367.6,3366.4,2.4368]
[1722260514388,2.96979,3367.3,3366.4,2.4368]
[1722260514685,1.06850734,3367.2,3366.4,2.4368]
[1722260514885,1.06850734,3367.2,3366.2,7.24]
[1722260514886,2.97,3367.0,3366.2,7.24]
[1722260515109,1.06838833,3366.9,3366.3,0.55]
[1722260515430,0.03975465,3366.9,3366.0,1.09655]
[1722260515802,2.96979,3367.3,3366.0,1.09655]
[1722260515997,0.03870064,3366.8,3366.1,1.083205]
[1722260516326,0.03961678,3366.7,3366.2,0.55]
[1722260516695,2.96979,3367.3,3366.0,0.54655]
[1722260516696,2.96979,3367.3,3366.1,0.55]
[1722260516899,1.02869054,3367.2,3366.2,0.359205]
[1722260517110,1.02869054,3367.1,3366.3,0.55]
[1722260517312,1.02869054,3367.1,3366.5,2.432]
[1722260517522,0.03996258,3367.0,3366.6,0.60939538]
[1722260517685,0.03996258,3367.0,3366.6,0.55]
[1722260517891,5.96964,3367.5,3366.6,0.2982]
[1722260518092,1.068602,3367.4,3366.7,0.05939933]
[1722260518421,1.02864759,3367.3,3366.7,0.05939933]
[1722260518621,0.03995441,3367.4,3366.8,0.55]
[1722260518622,1.02864759,3367.2,3366.8,0.55]
[1722260518823,0.03995057,3367.2,3366.8,0.55]
[1722260518998,0.03995057,3367.2,3366.6,0.55]
[1722260519199,3.0,3367.7,3366.7,1.0222]
[1722260519408,0.03990309,3367.1,3366.8,0.55]
[1722260519600,5.96944,3367.7,3366.8,0.55]
[1722260519813,0.03978783,3367.0,3366.8,0.55]
[1722260520014,2.96947,3367.6,3366.6,0.55]
[1722260520328,4.02857159,3367.5,3366.6,0.55]
[1722260520623,1.02857159,3367.4,3366.6,0.55]
[1722260520989,0.03996346,3367.3,3366.6,0.55]
[1722260521215,1.02857159,3367.2,3366.6,0.55]
[1722260521407,3.99844159,3367.2,3366.5,2.432]
[1722260521621,1.06846149,3367.1,3366.5,2.432]
[1722260521814,1.02857159,3367.0,3366.5,2.432]
[1722260522017,0.0398899,3367.1,3366.5,2.432]
[1722260522329,1.0682114,3367.0,3366.6,0.0593994]
[1722260522533,0.03953381,3367.0,3366.6,0.0593994]
[1722260522942,2.96927,3367.9,3366.6,0.0593994]
[1722260523145,1.02853441,3367.8,3366.7,0.55]
[1722260523357,1.02853441,3367.7,3366.5,3.4351205]
[1722260523642,2.96978,3367.3,3366.5,3.4351205]
[1722260523853,1.02853441,3367.2,3366.5,3.4351205]
[1722260524156,1.06817247,3367.2,3366.5,3.4351205]
[1722260524375,1.02853441,3367.1,3366.5,3.4351205]
[1722260524503,1.02853441,3367.1,3366.6,1.12691151]
[1722260524840,2.96952,3367.6,3366.6,1.12691151]
[1722260524841,1.06828256,3367.0,3366.6,1.12691151]
[1722260525043,0.03962002,3367.0,3366.6,1.12691151]
[1722260525256,1.02862661,3366.9,3366.6,1.12691151]
[1722260525399,1.06796743,3366.9,3366.6,1.06751205]
[1722260525606,1.02863197,3366.8,3366.6,1.06751205]
[1722260525909,0.03921835,3366.7,3366.6,1.06751205]
[1722260526396,5.96963,3367.5,3366.6,1.06751205]
[1722260526600,5.96963,3367.5,3366.5,2.49139997]
[1722260526601,2.72789323,3367.4,3366.5,2.49139997]
[1722260526821,1.83397923,3367.3,3366.5,2.49139997]
[1722260527020,1.02863121,3367.2,3366.6,0.55]
[1722260527367,3.0,3367.8,3366.7,0.05939413]
[1722260527368,5.96931,3367.8,3366.7,0.05939413]
[1722260527651,1.83401893,3367.7,3366.8,0.30413941]
[1722260527803,1.83401893,3367.6,3366.9,0.05939349]
[1722260528006,1.83401893,3367.5,3366.9,0.05939349]
[1722260528210,1.02851408,3367.4,3367.0,2.4184]
[1722260528461,0.03892345,3367.5,3367.1,0.88757995]
[1722260528639,2.96863,3368.6,3367.1,0.88757995]
[1722260528640,2.96878,3368.4,3367.1,0.88757995]
[1722260528851,1.0283558,3368.3,3367.1,0.88757995]
[1722260529151,1.0283558,3368.2,3367.2,0.330598]
[1722260529366,1.0283558,3368.1,3367.3,0.60938291]
[1722260529519,1.83443194,3368.0,3367.3,0.60938291]
[1722260529717,0.03876043,3368.1,3367.4,2.2735]
[1722260530022,2.96793,3369.4,3367.7,2.598]
[1722260530226,2.96793,3369.4,3367.8,5.42097911]
[1722260530227,1.83429721,3369.3,3367.8,5.42097911]
[1722260530484,1.83429721,3369.2,3367.9,0.55]
[1722260530690,1.83429721,3369.1,3368.0,0.91032398]
[1722260530833,1.83429721,3369.1,3368.1,0.55]
[1722260530834,1.83429721,3369.0,3368.1,0.55]
[1722260531037,2.96777,3369.6,3368.2,0.05936375]
[1722260531038,1.87338164,3368.9,3368.2,0.05936375]
[1722260531277,0.03908443,3368.9,3368.4,2.2888]
[1722260531479,2.96764,3369.7,3368.5,0.05936151]
[1722260531721,3.26839569,3369.6,3368.6,0.55]
[1722260531847,3.26839569,3369.6,3368.7,0.05936139]
[1722260531848,1.43194086,3369.5,3368.7,0.05936139]
[1722260532052,0.80833729,3369.4,3368.7,0.05936139]
[1722260532268,0.03937682,3369.4,3368.6,0.55]
[1722260532434,2.96747,3369.9,3368.5,0.55]
[1722260532634,2.96777,3369.6,3368.5,0.55]
[1722260532889,1.83645644,3369.8,3367.9,2.4111]
[1722260532890,2.96803,3369.3,3367.9,2.4111]
[1722260533087,2.56382508,3369.2,3368.0,0.55]
[1722260533285,0.80854065,3369.1,3368.0,0.55]
[1722260533450,5.43703,3369.5,3368.0,0.55]
[1722260533451,0.03914292,3369.0,3368.0,0.55]
[1722260533655,5.96795,3369.4,3368.0,0.55]
[1722260533984,0.84808492,3369.3,3368.1,0.893038]
[1722260534282,0.03931835,3369.3,3368.2,0.55]
[1722260534482,0.03931835,3369.3,3368.3,0.05936306]
[1722260534786,3.0,3369.5,3368.4,0.55]
[1722260534934,0.03925988,3369.2,3368.5,2.33965843]
[1722260535133,2.598,3370.4,3368.5,2.33965843]
[1722260535134,0.03822245,3369.4,3368.6,0.55]
[1722260535388,2.96727,3370.1,3368.7,0.3483215]
[1722260535684,5.43982,3370.4,3368.8,0.60935543]
[1722260535685,0.03816398,3369.3,3368.8,0.60935543]
[1722260535839,2.96702,3370.4,3368.8,0.60935543]
[1722260535840,2.96702,3370.4,3368.8,3.57775543]
[1722260536037,0.808456,3370.3,3368.9,2.3258]
[1722260536236,0.3775476,3370.2,3369.0,0.60934878]
[1722260536683,0.3775476,3370.2,3369.0,3.57756878]
[1722260536684,0.03709024,3370.1,3369.0,3.57756878]
[1722260536983,2.96683,3370.6,3369.0,3.57756878]
[1722260537149,3.0219,3370.7,3369.0,3.57756878]
[1722260537482,3.0219,3370.7,3369.0,4.84585508]
[1722260537483,0.03734375,3370.5,3369.0,4.84585508]
[1722260537697,0.8655015,3370.6,3369.0,1.87763508]
[1722260537899,0.0372656,3370.4,3369.1,2.96814]
[1722260538041,0.03720624,3370.5,3369.3,2.3693]
[1722260538385,0.03696882,3370.4,3369.4,0.55]
[1722260538540,0.03696882,3370.4,3369.4,1.30066604]
[1722260538887,0.0551,3370.7,3369.4,1.30066604]
[1722260539039,0.0551,3370.7,3369.4,0.55]
[1722260539040,0.0370577,3370.3,3369.4,0.55]
[1722260539247,0.0551,3370.7,3369.4,0.55]
[1722260539487,0.03708762,3370.2,3369.4,0.55]
[1722260539711,3.0551,3370.7,3369.4,0.55]
[1722260539842,0.03702915,3370.1,3369.5,0.39886704]
[1722260540045,0.03702915,3370.1,3369.6,0.55]
[1722260540340,0.0551,3370.7,3369.7,0.05933872]
[1722260540571,0.0551,3370.7,3369.8,0.6093365]
[1722260540764,0.03574366,3370.6,3369.8,1.00693585]
[1722260541158,0.0551,3370.7,3369.8,1.00693585]
[1722260541360,0.0551,3370.7,3369.8,1.00692978]
[1722260541581,0.0551,3370.7,3369.8,0.94759935]
[1722260541938,0.0551,3370.7,3369.9,0.05933049]
[1722260542148,0.0551,3370.7,3370.0,0.55]
[1722260542344,0.0551,3370.7,3369.4,4.5]
[1722260542345,0.357267,3370.7,3369.4,4.5]
[1722260542653,2.96706,3370.4,3369.3,2.3693]
[1722260542855,2.96714,3370.3,3369.3,2.3693]
[1722260543088,3.00317574,3370.3,3369.3,2.3693]
[1722260543378,0.59702357,3370.2,3369.3,2.3693]
[1722260543540,3.00317574,3370.3,3369.3,2.3693]
[1722260543742,0.03592264,3370.1,3369.3,2.3693]
[1722260543947,2.96733,3370.1,3369.3,2.3693]
[1722260544185,0.03580188,3370.0,3369.3,2.3693]
[1722260544341,0.6039113,3369.9,3369.3,2.3693]
[1722260544544,0.03580188,3370.0,3369.3,2.3693]
[1722260544775,0.03430564,3369.8,3369.4,0.059349]
[1722260544953,0.03436411,3369.9,3369.4,0.059349]
[1722260545157,3.0,3370.5,3369.4,1.3222139]
[1722260545364,6.02185,3370.7,3369.5,0.55]
[1722260545682,0.03463291,3370.4,3369.5,0.55]
[1722260545881,0.60233229,3370.4,3369.4,0.55]
[1722260546079,0.03457445,3370.3,3369.4,0.55]
[1722260546669,3.00172445,3370.3,3369.4,0.55]
[1722260546983,3.00173445,3370.3,3369.3,2.3693]
[1722260547198,3.62758667,3370.2,3369.3,2.3693]
[1722260547347,3.66222534,3370.2,3369.3,2.3693]
[1722260547693,0.69504534,3370.2,3369.2,2.96]
[1722260547984,2.96747,3369.9,3369.1,7.24]
[1722260548489,3.00196634,3369.8,3369.1,7.24]
[1722260548658,2.96771,3369.6,3369.1,7.24]
[1722260548866,0.03425559,3369.5,3369.1,7.24]
[1722260549568,2.96753,3369.8,3369.1,7.24]
[1722260549909,3.59394945,3369.8,3369.1,7.24]
[1722260550205,2.96776,3369.6,3369.1,7.24]
[1722260550571,0.03441126,3369.5,3369.1,7.24]
[1722260551366,0.03441126,3369.5,3369.2,0.05935236]
[1722260551613,2.96706,3370.4,3369.3,0.55]
[1722260551808,2.96706,3370.4,3369.0,0.55]
[1722260551809,0.03438107,3369.4,3369.0,0.55]
[1722260552009,2.96725,3370.2,3369.0,0.55]
[1722260552010,2.96737,3370.0,3369.0,0.55]
[1722260552323,0.0346942,3369.9,3369.0,0.55]
[1722260552921,3.0,3370.3,3369.0,0.55]
[1722260552922,2.96736,3370.0,3369.0,0.55]
[1722260553109,0.03463573,3369.8,3369.0,0.55]
[1722260553311,2.96736,3370.0,3369.0,0.55]
[1722260553538,0.62810727,3369.9,3369.0,0.55]
[1722260553691,0.03465127,3369.9,3369.0,0.55]
[1722260553890,2.96733,3370.1,3369.0,0.55]
[1722260554128,0.03470973,3370.0,3369.0,0.55]
[1722260554486,3.00208973,3370.0,3369.0,0.55]
[1722260554726,0.03470973,3370.0,3369.0,1.57204]
[1722260555034,0.03470973,3370.0,3369.0,0.55]
[1722260555711,2.96751,3369.9,3369.0,0.55]
[1722260555916,3.00205377,3369.8,3369.0,0.55]
[1722260556285,3.00206377,3369.8,3369.0,0.55]
[1722260556485,3.00206377,3369.8,3368.9,2.4304]
[1722260556486,2.96779,3369.6,3368.9,2.4304]
[1722260556689,2.9679,3369.4,3368.9,2.4304]
[1722260556912,2.9679,3369.4,3368.7,7.24]
[1722260556913,0.03402775,3369.3,3368.7,7.24]
[1722260557141,2.9679,3369.4,3368.7,7.24]
[1722260557772,2.9679,3369.4,3368.1,12.12]
[1722260557773,2.96816,3369.1,3368.3,7.24]
[1722260558106,1.06211189,3369.0,3368.3,7.24]
[1722260558364,0.033971,3369.0,3368.3,7.24]
[1722260558842,2.96807,3369.2,3368.3,7.24]
[1722260559049,0.03384443,3368.9,3368.3,7.24]
[1722260559230,0.623284,3369.1,3368.3,7.24]
[1722260559743,0.03393123,3369.0,3368.3,7.24]
[1722260559945,0.03393123,3369.0,3368.4,0.05936586]
[1722260560110,3.0,3369.4,3368.4,0.05936586]